[Event "Titled Tuesday Blitz July 4 Early 2023"]
[White "Kopczynski, Michal"]
[Black "Vaibhav Jayant Raut"]
[WhiteFideId "1124200"]
[BlackFideId "5089034"]
[WhiteElo "2445"]
[BlackElo "2642"]
[Result "1-0"]
[Round "4"]
[TimeControl "180+2"]
[Date "2023.07.04"]
[WhiteClock "0:00:16"]
[BlackClock "0:00:00"]
[Board "90"]

1. e4 {[%clk 0:03:00]}  c5 {[%clk 0:02:59]} 2. d4 {[%clk 0:03:01]}  cxd4 {[%clk 0:02:59]} 3. c3 {[%clk 0:03:01]}  d3 {[%clk 0:02:59]} 4. Bxd3 {[%clk 0:03:01]}  d6 {[%clk 0:03:00]} 5. f4 {[%clk 0:03:02]}  Nc6 {[%clk 0:02:59]} 6. Nf3 {[%clk 0:03:03]}  g6 {[%clk 0:02:59]} 7. O-O {[%clk 0:03:03]}  Bg7 {[%clk 0:03:00]} 8. Kh1 {[%clk 0:03:04]}  Nf6 {[%clk 0:03:00]} 9. Qe1 {[%clk 0:03:04]}  h5 {[%clk 0:02:55]} 10. Be3 {[%clk 0:03:04]}  h4 {[%clk 0:02:55]} 11. Nbd2 {[%clk 0:03:02]}  Ng4 {[%clk 0:02:46]} 12. Bg1 {[%clk 0:03:01]}  h3 {[%clk 0:02:47]} 13. g3 {[%clk 0:02:50]}  Bd7 {[%clk 0:02:45]} 14. Rd1 {[%clk 0:02:44]}  Qc7 {[%clk 0:02:44]} 15. Nd4 {[%clk 0:02:30]}  a6 {[%clk 0:02:31]} 16. Be2 {[%clk 0:02:19]}  O-O-O {[%clk 0:02:22]} 17. Bf3 {[%clk 0:02:19]}  Kb8 {[%clk 0:02:11]} 18. Nxc6+ {[%clk 0:02:13]}  Qxc6 {[%clk 0:02:12]} 19. Qe2 {[%clk 0:02:08]}  Nh6 {[%clk 0:01:56]} 20. Nb3 {[%clk 0:02:03]}  e5 {[%clk 0:01:48]} 21. f5 {[%clk 0:01:37]}  Qb5 {[%clk 0:01:26]} 22. c4 {[%clk 0:01:32]}  Qa4 {[%clk 0:01:18]} 23. Rxd6 {[%clk 0:01:28]}  Bc6 {[%clk 0:01:18]} 24. Rfd1 {[%clk 0:01:18]}  Rxd6 {[%clk 0:00:58]} 25. Rxd6 {[%clk 0:01:19]}  gxf5 {[%clk 0:00:58]} 26. Qe3 {[%clk 0:01:10]}  Qxc4 {[%clk 0:00:43]} 27. Na5 {[%clk 0:01:09]}  Qb5 {[%clk 0:00:07]} 28. Nxc6+ {[%clk 0:00:50]}  bxc6 {[%clk 0:00:06]} 29. Qa7+ {[%clk 0:00:49]}  Kc8 {[%clk 0:00:07]} 30. Rd7 {[%clk 0:00:35]}  Qb8 {[%clk 0:00:04]} 31. exf5 {[%clk 0:00:22]}  Qxa7 {[%clk 0:00:03]} 32. Rxa7 {[%clk 0:00:22]}  Nxf5 {[%clk 0:00:03]} 33. Rxa6 {[%clk 0:00:22]}  Nd4 {[%clk 0:00:02]} 34. Bxc6 {[%clk 0:00:21]}  Kc7 {[%clk 0:00:01]} 35. Bd5 {[%clk 0:00:21]}  Rb8 {[%clk 0:00:02]} 36. b3 {[%clk 0:00:20]}  Rd8 {[%clk 0:00:02]} 37. Be4 {[%clk 0:00:19]}  f5 {[%clk 0:00:00]} 38. Ra7+ {[%clk 0:00:16]} 1-0


[Site "https://www.chess.com"]

[Event "Titled Tuesday Blitz July 4 Early 2023"]
[White "Martinez Ramirez, Lennis"]
[Black "Ai, Evan"]
[WhiteFideId "3509079"]
[BlackFideId "2094770"]
[WhiteElo "2639"]
[BlackElo "2441"]
[Result "1-0"]
[Round "4"]
[TimeControl "180+2"]
[Date "2023.07.04"]
[WhiteClock "0:00:13"]
[BlackClock "0:00:32"]
[Board "92"]

1. c4 {[%clk 0:03:00]}  e5 {[%clk 0:02:59]} 2. Nc3 {[%clk 0:03:00]}  Bb4 {[%clk 0:03:00]} 3. Nd5 {[%clk 0:02:57]}  Bc5 {[%clk 0:03:00]} 4. e3 {[%clk 0:02:50]}  c6 {[%clk 0:02:58]} 5. d4 {[%clk 0:02:47]}  cxd5 {[%clk 0:02:50]} 6. dxc5 {[%clk 0:02:47]}  dxc4 {[%clk 0:02:51]} 7. Qd6 {[%clk 0:02:38]}  Nc6 {[%clk 0:02:39]} 8. Bxc4 {[%clk 0:02:37]}  Qf6 {[%clk 0:02:33]} 9. Bd2 {[%clk 0:02:08]}  Qxd6 {[%clk 0:02:16]} 10. cxd6 {[%clk 0:02:09]}  Nf6 {[%clk 0:02:16]} 11. f3 {[%clk 0:02:10]}  Rb8 {[%clk 0:02:01]} 12. a4 {[%clk 0:02:03]}  a6 {[%clk 0:01:46]} 13. a5 {[%clk 0:02:02]}  b5 {[%clk 0:01:44]} 14. axb6 {[%clk 0:02:02]}  Rxb6 {[%clk 0:01:42]} 15. b3 {[%clk 0:01:56]}  Bb7 {[%clk 0:01:38]} 16. Ne2 {[%clk 0:01:56]}  O-O {[%clk 0:01:37]} 17. e4 {[%clk 0:01:56]}  Ne8 {[%clk 0:01:27]} 18. Be3 {[%clk 0:00:45]}  Nd4 {[%clk 0:01:21]} 19. Nxd4 {[%clk 0:00:25]}  exd4 {[%clk 0:01:10]} 20. Bxd4 {[%clk 0:00:26]}  Rc6 {[%clk 0:01:00]} 21. e5 {[%clk 0:00:21]}  Nxd6 {[%clk 0:00:54]} 22. exd6 {[%clk 0:00:20]}  Re8+ {[%clk 0:00:55]} 23. Kf2 {[%clk 0:00:20]}  Rxd6 {[%clk 0:00:55]} 24. Rhe1 {[%clk 0:00:21]}  Rc8 {[%clk 0:00:50]} 25. Rad1 {[%clk 0:00:19]}  a5 {[%clk 0:00:49]} 26. Re7 {[%clk 0:00:18]}  Kf8 {[%clk 0:00:46]} 27. Rxf7+ {[%clk 0:00:18]}  Ke8 {[%clk 0:00:45]} 28. Re1+ {[%clk 0:00:19]}  Kd8 {[%clk 0:00:45]} 29. Bxg7 {[%clk 0:00:14]}  a4 {[%clk 0:00:33]} 30. Bf6+ {[%clk 0:00:13]}  Kc7 {[%clk 0:00:32]} 31. Be5 {[%clk 0:00:13]} 1-0


[Site "https://www.chess.com"]

[Event "Titled Tuesday Blitz July 4 Early 2023"]
[White "Zacurdajev, Dmitry"]
[Black "benny_aizenberg"]
[WhiteFideId "4196309"]
[WhiteElo "2441"]
[BlackElo "2629"]
[Result "0-1"]
[Round "4"]
[TimeControl "180+2"]
[Date "2023.07.04"]
[WhiteClock "0:00:00"]
[BlackClock "0:01:08"]
[Board "93"]

1. d4 {[%clk 0:03:00]}  Nf6 {[%clk 0:02:58]} 2. c4 {[%clk 0:03:01]}  e6 {[%clk 0:02:57]} 3. Nc3 {[%clk 0:03:01]}  Bb4 {[%clk 0:02:57]} 4. Qc2 {[%clk 0:03:02]}  O-O {[%clk 0:02:52]} 5. a3 {[%clk 0:03:01]}  Bxc3+ {[%clk 0:02:52]} 6. Qxc3 {[%clk 0:03:02]}  c5 {[%clk 0:02:49]} 7. dxc5 {[%clk 0:02:55]}  a5 {[%clk 0:02:41]} 8. Bg5 {[%clk 0:02:52]}  Na6 {[%clk 0:02:30]} 9. b4 {[%clk 0:02:27]}  axb4 {[%clk 0:02:28]} 10. axb4 {[%clk 0:02:28]}  Ne4 {[%clk 0:02:25]} 11. Bxd8 {[%clk 0:02:28]}  Nxc3 {[%clk 0:02:26]} 12. Be7 {[%clk 0:02:15]}  Re8 {[%clk 0:02:22]} 13. Bd6 {[%clk 0:02:14]}  b5 {[%clk 0:01:57]} 14. cxb6 {[%clk 0:01:20]}  Bb7 {[%clk 0:01:55]} 15. Nf3 {[%clk 0:01:15]}  Ne4 {[%clk 0:01:52]} 16. Rd1 {[%clk 0:00:29]}  Nxd6 {[%clk 0:01:35]} 17. Rxd6 {[%clk 0:00:30]}  Nxb4 {[%clk 0:01:35]} 18. e3 {[%clk 0:00:16]}  Ra1+ {[%clk 0:01:28]} 19. Kd2 {[%clk 0:00:11]}  Bc6 {[%clk 0:01:25]} 20. Ne5 {[%clk 0:00:10]}  Ba4 {[%clk 0:01:19]} 21. Kc3 {[%clk 0:00:11]}  Rb1 {[%clk 0:01:14]} 22. Nxd7 {[%clk 0:00:03]}  Na2+ {[%clk 0:01:13]} 23. Kd4 {[%clk 0:00:02]}  Rd1+ {[%clk 0:01:13]} 24. Kc5 {[%clk 0:00:00]}  Rc8+ {[%clk 0:01:08]} 0-1


[Site "https://www.chess.com"]

[Event "Titled Tuesday Blitz July 4 Early 2023"]
[White "Zia, Tahsin Tajwar"]
[Black "Borgaonkar Akshay"]
[WhiteFideId "10211888"]
[BlackFideId "25639110"]
[WhiteElo "2411"]
[BlackElo "2621"]
[Result "1-0"]
[Round "4"]
[TimeControl "180+2"]
[Date "2023.07.04"]
[WhiteClock "0:00:04"]
[BlackClock "0:00:00"]
[Board "96"]

1. d4 {[%clk 0:03:00]}  Nf6 {[%clk 0:02:56]} 2. c4 {[%clk 0:02:59]}  e6 {[%clk 0:02:57]} 3. g3 {[%clk 0:02:58]}  Bb4+ {[%clk 0:02:49]} 4. Bd2 {[%clk 0:02:56]}  Be7 {[%clk 0:02:47]} 5. Bg2 {[%clk 0:02:57]}  c6 {[%clk 0:02:47]} 6. Nf3 {[%clk 0:02:55]}  b6 {[%clk 0:02:48]} 7. Qc2 {[%clk 0:02:55]}  Bb7 {[%clk 0:02:48]} 8. Nc3 {[%clk 0:02:53]}  d5 {[%clk 0:02:49]} 9. Rd1 {[%clk 0:02:51]}  Nbd7 {[%clk 0:02:48]} 10. h4 {[%clk 0:02:45]}  dxc4 {[%clk 0:02:46]} 11. Ne5 {[%clk 0:02:41]}  Nxe5 {[%clk 0:02:41]} 12. dxe5 {[%clk 0:02:42]}  Nd5 {[%clk 0:02:42]} 13. Ne4 {[%clk 0:02:41]}  b5 {[%clk 0:02:39]} 14. Bg5 {[%clk 0:02:32]}  Qa5+ {[%clk 0:02:37]} 15. Kf1 {[%clk 0:02:31]}  Bf8 {[%clk 0:02:13]} 16. a3 {[%clk 0:02:26]}  h6 {[%clk 0:02:10]} 17. Bd2 {[%clk 0:02:24]}  Qc7 {[%clk 0:02:10]} 18. Nd6+ {[%clk 0:02:18]}  Bxd6 {[%clk 0:02:08]} 19. exd6 {[%clk 0:02:19]}  Qd7 {[%clk 0:01:55]} 20. e4 {[%clk 0:02:18]}  Nb6 {[%clk 0:01:52]} 21. e5 {[%clk 0:02:08]}  c5 {[%clk 0:01:38]} 22. Be3 {[%clk 0:02:00]}  Bxg2+ {[%clk 0:01:35]} 23. Kxg2 {[%clk 0:02:01]}  O-O-O {[%clk 0:01:36]} 24. Qe4 {[%clk 0:01:56]}  Nd5 {[%clk 0:01:28]} 25. Kh2 {[%clk 0:01:32]}  Qc6 {[%clk 0:01:24]} 26. a4 {[%clk 0:01:32]}  a6 {[%clk 0:01:22]} 27. axb5 {[%clk 0:01:24]}  axb5 {[%clk 0:01:23]} 28. Ra1 {[%clk 0:01:21]}  Kb7 {[%clk 0:01:23]} 29. Qf3 {[%clk 0:01:10]}  Nxe3 {[%clk 0:00:56]} 30. Qxe3 {[%clk 0:00:56]}  Ra8 {[%clk 0:00:52]} 31. Qf4 {[%clk 0:00:46]}  Rxa1 {[%clk 0:00:37]} 32. Rxa1 {[%clk 0:00:47]}  Qd7 {[%clk 0:00:38]} 33. Qf3+ {[%clk 0:00:45]}  Kb6 {[%clk 0:00:36]} 34. Qa3 {[%clk 0:00:44]}  Qb7 {[%clk 0:00:32]} 35. Qa5+ {[%clk 0:00:06]}  Kc6 {[%clk 0:00:32]} 36. Qd2 {[%clk 0:00:06]}  Kd7 {[%clk 0:00:29]} 37. Qf4 {[%clk 0:00:06]}  Rf8 {[%clk 0:00:25]} 38. Qe3 {[%clk 0:00:07]}  Qb6 {[%clk 0:00:23]} 39. Qf3 {[%clk 0:00:07]}  f6 {[%clk 0:00:19]} 40. Qg4 {[%clk 0:00:06]}  g5 {[%clk 0:00:16]} 41. Qe4 {[%clk 0:00:04]}  f5 {[%clk 0:00:11]} 42. Qe3 {[%clk 0:00:04]}  gxh4 {[%clk 0:00:09]} 43. Qxh6 {[%clk 0:00:04]}  Rf7 {[%clk 0:00:08]} 44. Qg6 {[%clk 0:00:04]}  Kc6 {[%clk 0:00:01]} 45. Qxf7 {[%clk 0:00:04]}  hxg3+ {[%clk 0:00:02]} 46. Kg2 {[%clk 0:00:04]}  Kd5 {[%clk 0:00:00]} 47. Qc7 {[%clk 0:00:04]} 1-0


[Site "https://www.chess.com"]

[Event "Titled Tuesday Blitz July 4 Early 2023"]
[White "Glavina, Pablo"]
[Black "Karttunen, Mika"]
[WhiteFideId "100234"]
[BlackFideId "502081"]
[WhiteElo "2373"]
[BlackElo "2619"]
[Result "1-0"]
[Round "4"]
[TimeControl "180+2"]
[Date "2023.07.04"]
[WhiteClock "0:00:44"]
[BlackClock "0:00:11"]
[Board "97"]

1. c4 {[%clk 0:03:00]}  c5 {[%clk 0:02:58]} 2. Nf3 {[%clk 0:03:00]}  Nc6 {[%clk 0:02:59]} 3. d4 {[%clk 0:03:01]}  cxd4 {[%clk 0:02:58]} 4. Nxd4 {[%clk 0:03:02]}  Nf6 {[%clk 0:02:58]} 5. Nc3 {[%clk 0:03:02]}  g6 {[%clk 0:02:57]} 6. e4 {[%clk 0:03:00]}  d6 {[%clk 0:02:56]} 7. Be2 {[%clk 0:02:59]}  Bg7 {[%clk 0:02:56]} 8. Be3 {[%clk 0:02:59]}  O-O {[%clk 0:02:56]} 9. O-O {[%clk 0:02:59]}  Bd7 {[%clk 0:02:54]} 10. h3 {[%clk 0:03:00]}  a6 {[%clk 0:02:51]} 11. Nf3 {[%clk 0:02:49]}  Rc8 {[%clk 0:02:46]} 12. Nd2 {[%clk 0:02:37]}  Be6 {[%clk 0:02:14]} 13. Rc1 {[%clk 0:02:32]}  Nd7 {[%clk 0:01:56]} 14. f4 {[%clk 0:02:29]}  f5 {[%clk 0:01:55]} 15. exf5 {[%clk 0:02:21]}  gxf5 {[%clk 0:01:54]} 16. Nf3 {[%clk 0:02:19]}  Kh8 {[%clk 0:01:47]} 17. Kh1 {[%clk 0:02:04]}  Bg8 {[%clk 0:01:41]} 18. Qd2 {[%clk 0:02:00]}  Nf6 {[%clk 0:01:33]} 19. Bd3 {[%clk 0:01:58]}  Nh5 {[%clk 0:01:23]} 20. Kh2 {[%clk 0:01:54]}  e5 {[%clk 0:01:22]} 21. Be2 {[%clk 0:01:42]}  exf4 {[%clk 0:01:05]} 22. Bxf4 {[%clk 0:01:43]}  Nxf4 {[%clk 0:01:05]} 23. Qxf4 {[%clk 0:01:43]}  Ne5 {[%clk 0:01:05]} 24. Kh1 {[%clk 0:01:41]}  Nxc4 {[%clk 0:01:00]} 25. Bxc4 {[%clk 0:01:31]}  Rxc4 {[%clk 0:00:59]} 26. Qd2 {[%clk 0:01:30]}  d5 {[%clk 0:00:49]} 27. Ne2 {[%clk 0:01:28]}  Qb6 {[%clk 0:00:38]} 28. b3 {[%clk 0:01:28]}  Re4 {[%clk 0:00:37]} 29. Ng3 {[%clk 0:01:20]}  Bh6 {[%clk 0:00:17]} 30. Qb2+ {[%clk 0:01:19]}  Qf6 {[%clk 0:00:17]} 31. Qxf6+ {[%clk 0:00:55]}  Rxf6 {[%clk 0:00:17]} 32. Nxe4 {[%clk 0:00:56]}  dxe4 {[%clk 0:00:16]} 33. Rc8 {[%clk 0:00:57]}  exf3 {[%clk 0:00:16]} 34. Rxf3 {[%clk 0:00:58]}  Rf8 {[%clk 0:00:16]} 35. Rxf8 {[%clk 0:00:55]}  Bxf8 {[%clk 0:00:15]} 36. Rxf5 {[%clk 0:00:56]}  Bd6 {[%clk 0:00:15]} 37. Rf6 {[%clk 0:00:57]}  Be5 {[%clk 0:00:14]} 38. Rf5 {[%clk 0:00:55]}  Bd4 {[%clk 0:00:14]} 39. Rf4 {[%clk 0:00:54]}  Bb2 {[%clk 0:00:12]} 40. Re4 {[%clk 0:00:52]}  Ba3 {[%clk 0:00:11]} 41. Rd4 {[%clk 0:00:51]}  Bc5 {[%clk 0:00:10]} 42. Rd7 {[%clk 0:00:51]}  b6 {[%clk 0:00:11]} 43. Kh2 {[%clk 0:00:50]}  a5 {[%clk 0:00:11]} 44. Kg3 {[%clk 0:00:50]}  Be6 {[%clk 0:00:11]} 45. Rb7 {[%clk 0:00:48]}  Kg8 {[%clk 0:00:12]} 46. Kf4 {[%clk 0:00:47]}  Bf7 {[%clk 0:00:12]} 47. g4 {[%clk 0:00:47]}  Kg7 {[%clk 0:00:13]} 48. Kf5 {[%clk 0:00:47]}  Kf8 {[%clk 0:00:12]} 49. Kf6 {[%clk 0:00:46]}  Bd4+ {[%clk 0:00:12]} 50. Kf5 {[%clk 0:00:46]}  Ke8 {[%clk 0:00:12]} 51. Ke4 {[%clk 0:00:44]}  Bg6+ {[%clk 0:00:12]} 52. Kxd4 {[%clk 0:00:44]}  Kd8 {[%clk 0:00:11]} 53. Rxb6 {[%clk 0:00:44]}  Kc7 {[%clk 0:00:12]} 54. Ra6 {[%clk 0:00:44]}  Kb7 {[%clk 0:00:11]} 55. Rxa5 {[%clk 0:00:44]} 1-0


[Site "https://www.chess.com"]

[Event "Titled Tuesday Blitz July 4 Early 2023"]
[White "MAHanif"]
[Black "Ganiev, Roman"]
[BlackFideId "4131452"]
[WhiteElo "2359"]
[BlackElo "2619"]
[Result "1/2-1/2"]
[Round "4"]
[TimeControl "180+2"]
[Date "2023.07.04"]
[WhiteClock "0:00:50"]
[BlackClock "0:00:31"]
[Board "98"]

1. d4 {[%clk 0:03:00]}  Nf6 {[%clk 0:02:59]} 2. Nf3 {[%clk 0:02:57]}  e6 {[%clk 0:02:59]} 3. g3 {[%clk 0:02:55]}  b6 {[%clk 0:02:49]} 4. Bg2 {[%clk 0:02:56]}  Bb7 {[%clk 0:02:49]} 5. O-O {[%clk 0:02:56]}  Be7 {[%clk 0:02:50]} 6. c4 {[%clk 0:02:55]}  O-O {[%clk 0:02:50]} 7. b3 {[%clk 0:02:54]}  c5 {[%clk 0:02:50]} 8. Bb2 {[%clk 0:02:52]}  cxd4 {[%clk 0:02:50]} 9. Nxd4 {[%clk 0:02:50]}  Bxg2 {[%clk 0:02:50]} 10. Kxg2 {[%clk 0:02:50]}  Qc8 {[%clk 0:02:49]} 11. e3 {[%clk 0:02:48]}  Nc6 {[%clk 0:02:48]} 12. Qf3 {[%clk 0:02:45]}  Ne5 {[%clk 0:02:42]} 13. Qe2 {[%clk 0:02:44]}  Qb7+ {[%clk 0:02:41]} 14. f3 {[%clk 0:02:43]}  Nc6 {[%clk 0:02:41]} 15. Nd2 {[%clk 0:02:42]}  Rac8 {[%clk 0:02:40]} 16. Rad1 {[%clk 0:02:40]}  d5 {[%clk 0:02:40]} 17. Nxc6 {[%clk 0:02:35]}  Qxc6 {[%clk 0:02:38]} 18. Bxf6 {[%clk 0:02:36]}  Bxf6 {[%clk 0:02:35]} 19. cxd5 {[%clk 0:02:36]}  Qxd5 {[%clk 0:02:25]} 20. Ne4 {[%clk 0:02:32]}  Qe5 {[%clk 0:02:22]} 21. Nxf6+ {[%clk 0:02:27]}  Qxf6 {[%clk 0:02:21]} 22. Rd2 {[%clk 0:02:23]}  h5 {[%clk 0:02:18]} 23. h4 {[%clk 0:02:20]}  Rc3 {[%clk 0:02:17]} 24. Rd3 {[%clk 0:02:17]}  Rfc8 {[%clk 0:02:14]} 25. Rfd1 {[%clk 0:02:16]}  Rc2 {[%clk 0:02:12]} 26. R3d2 {[%clk 0:02:11]}  R2c5 {[%clk 0:02:05]} 27. e4 {[%clk 0:02:03]}  Rc3 {[%clk 0:01:59]} 28. Rd3 {[%clk 0:02:02]}  g6 {[%clk 0:01:53]} 29. Rxc3 {[%clk 0:01:59]}  Rxc3 {[%clk 0:01:44]} 30. Rd3 {[%clk 0:01:57]}  Rc5 {[%clk 0:01:41]} 31. Qd2 {[%clk 0:01:50]}  Kg7 {[%clk 0:01:38]} 32. Qe2 {[%clk 0:01:21]}  Qa1 {[%clk 0:01:34]} 33. Rd1 {[%clk 0:01:14]}  Qc3 {[%clk 0:01:30]} 34. Qd2 {[%clk 0:01:12]}  Qf6 {[%clk 0:01:24]} 35. Rc1 {[%clk 0:01:07]}  Rxc1 {[%clk 0:01:02]} 36. Qxc1 {[%clk 0:01:04]}  Qd4 {[%clk 0:01:02]} 37. Qc2 {[%clk 0:00:58]}  e5 {[%clk 0:00:49]} 38. Qf2 {[%clk 0:00:53]}  Qd3 {[%clk 0:00:44]} 39. Qf1 {[%clk 0:00:50]}  Qd2+ {[%clk 0:00:30]} 40. Qf2 {[%clk 0:00:50]}  Qd3 {[%clk 0:00:31]} 41. Qf1 {[%clk 0:00:50]}  Qd2+ {[%clk 0:00:30]} 42. Qf2 {[%clk 0:00:50]}  Qd3 {[%clk 0:00:31]} 1/2-1/2


[Site "https://www.chess.com"]

[Event "Titled Tuesday Blitz July 4 Early 2023"]
[White "Fisher_TheGalactic"]
[Black "Dwilewicz, Katarzyna"]
[BlackFideId "1148486"]
[WhiteElo "2615"]
[BlackElo "2349"]
[Result "1-0"]
[Round "4"]
[TimeControl "180+2"]
[Date "2023.07.04"]
[WhiteClock "0:00:07"]
[BlackClock "0:00:00"]
[Board "100"]

1. Nf3 {[%clk 0:02:58]}  c5 {[%clk 0:02:59]} 2. g3 {[%clk 0:02:59]}  Nc6 {[%clk 0:02:58]} 3. Bg2 {[%clk 0:02:59]}  e5 {[%clk 0:02:58]} 4. e4 {[%clk 0:02:59]}  Nf6 {[%clk 0:02:53]} 5. O-O {[%clk 0:02:57]}  Be7 {[%clk 0:02:52]} 6. d3 {[%clk 0:02:56]}  O-O {[%clk 0:02:50]} 7. Nh4 {[%clk 0:02:55]}  d5 {[%clk 0:02:46]} 8. Nf5 {[%clk 0:02:42]}  Bxf5 {[%clk 0:02:28]} 9. exf5 {[%clk 0:02:43]}  Qd7 {[%clk 0:02:28]} 10. g4 {[%clk 0:02:42]}  d4 {[%clk 0:02:13]} 11. Nd2 {[%clk 0:02:34]}  Rfe8 {[%clk 0:02:11]} 12. Ne4 {[%clk 0:02:29]}  Rad8 {[%clk 0:02:04]} 13. g5 {[%clk 0:02:18]}  Nxe4 {[%clk 0:02:02]} 14. Bxe4 {[%clk 0:02:19]}  Bf8 {[%clk 0:01:42]} 15. Kh1 {[%clk 0:01:57]}  Ne7 {[%clk 0:01:33]} 16. f6 {[%clk 0:01:45]}  Ng6 {[%clk 0:01:26]} 17. Qf3 {[%clk 0:01:45]}  Nh4 {[%clk 0:00:59]} 18. Bxh7+ {[%clk 0:01:31]}  Kxh7 {[%clk 0:00:58]} 19. Qh5+ {[%clk 0:01:31]}  Kg8 {[%clk 0:00:59]} 20. Qxh4 {[%clk 0:01:31]}  c4 {[%clk 0:00:47]} 21. f3 {[%clk 0:01:20]}  Rc8 {[%clk 0:00:40]} 22. Rg1 {[%clk 0:01:16]}  Qf5 {[%clk 0:00:36]} 23. Rg3 {[%clk 0:01:14]}  Qh7 {[%clk 0:00:16]} 24. Qxh7+ {[%clk 0:01:06]}  Kxh7 {[%clk 0:00:16]} 25. g6+ {[%clk 0:01:07]}  Kg8 {[%clk 0:00:12]} 26. fxg7 {[%clk 0:00:55]}  Bxg7 {[%clk 0:00:10]} 27. gxf7+ {[%clk 0:00:40]}  Kxf7 {[%clk 0:00:11]} 28. f4 {[%clk 0:00:33]}  e4 {[%clk 0:00:08]} 29. dxe4 {[%clk 0:00:27]}  Rxe4 {[%clk 0:00:09]} 30. Bd2 {[%clk 0:00:24]}  Re2 {[%clk 0:00:10]} 31. Rd1 {[%clk 0:00:25]}  Rh8 {[%clk 0:00:09]} 32. Rg2 {[%clk 0:00:25]}  Rhe8 {[%clk 0:00:06]} 33. Kg1 {[%clk 0:00:17]}  b5 {[%clk 0:00:06]} 34. Kf1 {[%clk 0:00:18]}  Rxg2 {[%clk 0:00:05]} 35. Kxg2 {[%clk 0:00:18]}  Re2+ {[%clk 0:00:06]} 36. Kg3 {[%clk 0:00:19]}  Bf6 {[%clk 0:00:06]} 37. h4 {[%clk 0:00:16]}  Kg6 {[%clk 0:00:05]} 38. Kg4 {[%clk 0:00:16]}  Rg2+ {[%clk 0:00:05]} 39. Kf3 {[%clk 0:00:16]}  Rh2 {[%clk 0:00:05]} 40. Ke4 {[%clk 0:00:16]}  Rxh4 {[%clk 0:00:04]} 41. Rg1+ {[%clk 0:00:11]}  Kf7 {[%clk 0:00:04]} 42. Rg2 {[%clk 0:00:12]}  Ke6 {[%clk 0:00:03]} 43. b3 {[%clk 0:00:12]}  Rh3 {[%clk 0:00:02]} 44. f5+ {[%clk 0:00:10]}  Kd6 {[%clk 0:00:02]} 45. Bf4+ {[%clk 0:00:10]}  Ke7 {[%clk 0:00:02]} 46. Rg8 {[%clk 0:00:10]}  Kf7 {[%clk 0:00:02]} 47. Ra8 {[%clk 0:00:10]}  Rh4 {[%clk 0:00:01]} 48. Rxa7+ {[%clk 0:00:10]}  Ke8 {[%clk 0:00:02]} 49. Kf3 {[%clk 0:00:07]}  Rh3+ {[%clk 0:00:02]} 50. Kg4 {[%clk 0:00:07]}  Rc3 {[%clk 0:00:03]} 51. Ra6 {[%clk 0:00:06]}  Be7 {[%clk 0:00:02]} 52. Re6 {[%clk 0:00:06]}  Kf7 {[%clk 0:00:02]} 53. Re2 {[%clk 0:00:06]}  d3 {[%clk 0:00:02]} 54. cxd3 {[%clk 0:00:06]}  cxd3 {[%clk 0:00:03]} 55. Rd2 {[%clk 0:00:07]}  Bf6 {[%clk 0:00:03]} 56. Kf3 {[%clk 0:00:07]}  Ke7 {[%clk 0:00:02]} 57. Ke4 {[%clk 0:00:07]}  Rc2 {[%clk 0:00:01]} 58. Rxc2 {[%clk 0:00:07]}  dxc2 {[%clk 0:00:02]} 59. Kd3 {[%clk 0:00:08]}  Kd7 {[%clk 0:00:01]} 60. Kxc2 {[%clk 0:00:08]}  Kc6 {[%clk 0:00:02]} 61. Kd3 {[%clk 0:00:09]}  Kd5 {[%clk 0:00:02]} 62. Bd2 {[%clk 0:00:09]}  Be5 {[%clk 0:00:02]} 63. Bc3 {[%clk 0:00:09]}  Bd6 {[%clk 0:00:01]} 64. f6 {[%clk 0:00:10]}  b4 {[%clk 0:00:02]} 65. Bb2 {[%clk 0:00:10]}  Bf8 {[%clk 0:00:02]} 66. Ke3 {[%clk 0:00:07]}  Kc5 {[%clk 0:00:02]} 67. Ke4 {[%clk 0:00:07]}  Kd6 {[%clk 0:00:02]} 68. Kf5 {[%clk 0:00:08]}  Kd5 {[%clk 0:00:02]} 69. Kg6 {[%clk 0:00:07]}  Ke4 {[%clk 0:00:03]} 70. Kf7 {[%clk 0:00:07]}  Bc5 {[%clk 0:00:02]} 71. Ke6 {[%clk 0:00:06]}  Kd3 {[%clk 0:00:03]} 72. f7 {[%clk 0:00:07]}  Bf8 {[%clk 0:00:02]} 73. Be5 {[%clk 0:00:06]}  Kc2 {[%clk 0:00:02]} 74. Bd6 {[%clk 0:00:06]}  Bg7 {[%clk 0:00:02]} 75. Bxb4 {[%clk 0:00:06]}  Kb2 {[%clk 0:00:02]} 76. f8=Q {[%clk 0:00:06]}  Bxf8 {[%clk 0:00:01]} 77. Bxf8 {[%clk 0:00:07]}  Kxa2 {[%clk 0:00:00]} 78. b4 {[%clk 0:00:07]} 1-0


[Site "https://www.chess.com"]

[Event "Titled Tuesday Blitz July 4 Early 2023"]
[White "Materia, Marco"]
[Black "Rodriguez Santiago, Jaime"]
[WhiteFideId "45150451"]
[BlackFideId "3100898"]
[WhiteElo "2608"]
[BlackElo "2320"]
[Result "0-1"]
[Round "4"]
[TimeControl "180+2"]
[Date "2023.07.04"]
[WhiteClock "0:00:39"]
[BlackClock "0:00:06"]
[Board "102"]

1. d4 {[%clk 0:03:00]}  Nf6 {[%clk 0:02:59]} 2. c4 {[%clk 0:03:01]}  e6 {[%clk 0:02:59]} 3. Nf3 {[%clk 0:03:01]}  d5 {[%clk 0:02:59]} 4. Nc3 {[%clk 0:03:01]}  c5 {[%clk 0:02:59]} 5. cxd5 {[%clk 0:03:00]}  Nxd5 {[%clk 0:02:58]} 6. g3 {[%clk 0:03:00]}  Nc6 {[%clk 0:02:52]} 7. Bg2 {[%clk 0:02:57]}  cxd4 {[%clk 0:02:37]} 8. Nxd4 {[%clk 0:02:56]}  Nxd4 {[%clk 0:02:37]} 9. Qxd4 {[%clk 0:02:49]}  Nxc3 {[%clk 0:02:34]} 10. Qxc3 {[%clk 0:02:47]}  Qb6 {[%clk 0:01:55]} 11. O-O {[%clk 0:02:46]}  Bd7 {[%clk 0:01:47]} 12. Be3 {[%clk 0:02:43]}  Qb4 {[%clk 0:01:43]} 13. Qxb4 {[%clk 0:02:41]}  Bxb4 {[%clk 0:01:42]} 14. Bxb7 {[%clk 0:02:41]}  Rb8 {[%clk 0:01:41]} 15. Bf3 {[%clk 0:02:41]}  a5 {[%clk 0:01:34]} 16. Rfd1 {[%clk 0:02:39]}  Ke7 {[%clk 0:01:26]} 17. Rab1 {[%clk 0:02:11]}  Rhc8 {[%clk 0:01:23]} 18. Ba7 {[%clk 0:01:56]}  Rb5 {[%clk 0:01:22]} 19. a3 {[%clk 0:01:53]}  Bd6 {[%clk 0:01:21]} 20. Bd4 {[%clk 0:01:51]}  e5 {[%clk 0:01:17]} 21. Bc3 {[%clk 0:01:49]}  f6 {[%clk 0:01:10]} 22. Be1 {[%clk 0:01:45]}  Rc2 {[%clk 0:00:58]} 23. b4 {[%clk 0:01:41]}  axb4 {[%clk 0:00:46]} 24. axb4 {[%clk 0:01:41]}  f5 {[%clk 0:00:33]} 25. e4 {[%clk 0:01:41]}  f4 {[%clk 0:00:29]} 26. Bg2 {[%clk 0:01:26]}  g5 {[%clk 0:00:28]} 27. Bf1 {[%clk 0:01:24]}  Rb8 {[%clk 0:00:27]} 28. b5 {[%clk 0:01:25]}  Bc5 {[%clk 0:00:27]} 29. Rdc1 {[%clk 0:01:23]}  Rxc1 {[%clk 0:00:26]} 30. Rxc1 {[%clk 0:01:24]}  Bd4 {[%clk 0:00:26]} 31. Rb1 {[%clk 0:01:21]}  Kd6 {[%clk 0:00:26]} 32. Kg2 {[%clk 0:01:18]}  h5 {[%clk 0:00:26]} 33. f3 {[%clk 0:01:19]}  fxg3 {[%clk 0:00:20]} 34. hxg3 {[%clk 0:01:17]}  h4 {[%clk 0:00:19]} 35. Bb4+ {[%clk 0:01:08]}  Ke6 {[%clk 0:00:19]} 36. Bc4+ {[%clk 0:01:07]}  Kf6 {[%clk 0:00:20]} 37. Bd6 {[%clk 0:01:08]}  Rc8 {[%clk 0:00:20]} 38. Bd3 {[%clk 0:01:04]}  Rc3 {[%clk 0:00:20]} 39. b6 {[%clk 0:01:02]}  Rxd3 {[%clk 0:00:19]} 40. b7 {[%clk 0:01:02]}  Rd2+ {[%clk 0:00:19]} 41. Kh1 {[%clk 0:01:02]}  Ba7 {[%clk 0:00:15]} 42. b8=Q {[%clk 0:00:59]}  Bxb8 {[%clk 0:00:15]} 43. Bxb8 {[%clk 0:00:59]}  hxg3 {[%clk 0:00:08]} 44. Rb6+ {[%clk 0:00:58]}  Kf7 {[%clk 0:00:06]} 45. Bxe5 {[%clk 0:00:57]}  g2+ {[%clk 0:00:05]} 46. Kg1 {[%clk 0:00:57]}  Bh3 {[%clk 0:00:06]} 47. Rb1 {[%clk 0:00:55]}  Rd3 {[%clk 0:00:06]} 48. f4 {[%clk 0:00:55]}  Rf3 {[%clk 0:00:06]} 49. Rb8 {[%clk 0:00:39]}  Rf1+ {[%clk 0:00:05]} 50. Kh2 {[%clk 0:00:38]}  g1=Q+ {[%clk 0:00:06]} 51. Kxh3 {[%clk 0:00:39]}  Rf3# {[%clk 0:00:06]} 0-1


[Site "https://www.chess.com"]